fUSD/lending_fUSD_20260611
["ID","MTS","AMOUNT","RATE_DAILY","PERIOD"]
[424820849,1781182248000,-341.397837,0.00026004,2]
[424820848,1781182248000,-341.397837,0.00026004,2]
[424820854,1781182248000,-156.54,0.00026116,5]
[424820853,1781182248000,-150.0,0.00026028,3]
[424820856,1781182248000,-2000.0,0.0002615,2]
[424820850,1781182248000,-341.397837,0.00026004,2]
[424820855,1781182248000,-208.73,0.00026116,7]
[424820857,1781182248000,-2000.0,0.0002615,2]
[424820852,1781182248000,-155.18434343,0.00026025,2]
[424820851,1781182248000,-341.397837,0.00026004,2]
[424820844,1781182248000,-151.0,0.00026004,2]
[424820867,1781182248000,-2000.0,0.0002616,2]
[424820869,1781182248000,-2000.0,0.0002616,2]
[424820861,1781182248000,-2000.0,0.0002615,2]
[424820860,1781182248000,-2000.0,0.0002615,2]
[424820858,1781182248000,-2000.0,0.0002615,2]
[424820862,1781182248000,-2000.0,0.0002615,2]
[424820865,1781182248000,-2000.0,0.0002616,2]
[424820866,1781182248000,-2000.0,0.0002616,2]
[424820868,1781182248000,-2000.0,0.0002616,2]
[424820863,1781182248000,-346.44,0.0002615,2]
[424820864,1781182248000,-2000.0,0.0002616,2]
[424820859,1781182248000,-2000.0,0.0002615,2]
[424820935,1781182249000,-639.305788,0.00027397,2]
[424820934,1781182249000,-639.305788,0.00027397,2]
[424820931,1781182249000,-625.07,0.00027397,2]
[424820932,1781182249000,-300.0,0.00027397,2]
[424820926,1781182249000,-840.326565,0.00027397,2]
[424820933,1781182249000,-639.305788,0.00027397,2]
[424820930,1781182249000,-529.16,0.00027397,2]
[424820929,1781182249000,-840.326565,0.00027397,2]
[424820928,1781182249000,-840.326565,0.00027397,2]
[424820936,1781182249000,-639.305788,0.00027397,2]
[424820927,1781182249000,-840.326565,0.00027397,2]
[424820937,1781182249000,-15291.43,0.00027397,10]
[424820943,1781182249000,-169.82542138,0.00027425,7]
[424820940,1781182249000,-203.18665905,0.00027397,7]
[424820939,1781182249000,-396.00020813,0.00027397,7]
[424820950,1781182249000,-382.0,0.00027526,2]
[424820941,1781182249000,-150.0,0.00027397,3]
[424820942,1781182249000,-8281.73323951,0.00027416,2]
[424820949,1781182249000,-3556.0,0.00027526,2]
[424820946,1781182249000,-288.62274944,0.00027443,2]
[424820947,1781182249000,-342.96,0.0002746,7]
[424820948,1781182249000,-500.0,0.000275,7]
[424820944,1781182249000,-194.25456705,0.00027425,7]
[424820951,1781182249000,-1227.0,0.00027526,2]
[424820938,1781182249000,-12742.86,0.00027397,10]
[424820924,1781182249000,-427.152321,0.00027397,2]
[424820953,1781182249000,-176.61227292,0.00027548,7]
[424820919,1781182249000,-2585.09455613,0.00027397,2]
[424820899,1781182249000,-155.18434344,0.00027394,2]
[424820903,1781182249000,-500.0,0.00027397,3]
[424820900,1781182249000,-396.00020813,0.00027397,7]
[424820902,1781182249000,-360.76169886,0.00027397,2]
[424820901,1781182249000,-203.18665905,0.00027397,7]
[424820904,1781182249000,-500.0,0.00027397,3]
[424820908,1781182249000,-500.0,0.00027397,3]
[424820907,1781182249000,-500.0,0.00027397,3]
[424820906,1781182249000,-500.0,0.00027397,3]
[424820909,1781182249000,-500.0,0.00027397,3]
[424820910,1781182249000,-500.0,0.00027397,3]
[424820923,1781182249000,-427.152321,0.00027397,2]
[424820913,1781182249000,-500.0,0.00027397,3]
[424820905,1781182249000,-500.0,0.00027397,3]
[424820912,1781182249000,-500.0,0.00027397,3]
[424820915,1781182249000,-150.0,0.00027397,3]
[424820916,1781182249000,-150.0,0.00027397,3]
[424820914,1781182249000,-320.15154286,0.00027397,3]
[424820917,1781182249000,-150.0,0.00027397,3]
[424820925,1781182249000,-3087.87,0.00027397,2]
[424820920,1781182249000,-1500.0,0.00027397,2]
[424820922,1781182249000,-427.152321,0.00027397,2]
[424820918,1781182249000,-150.0,0.00027397,3]
[424820921,1781182249000,-427.152321,0.00027397,2]
[424820911,1781182249000,-500.0,0.00027397,3]
[424820955,1781182249000,-167.69840384,0.00027548,5]
[424820945,1781182249000,-167.17644493,0.00027425,7]
[424820954,1781182249000,-173.13259481,0.00027548,2]
[424820985,1781182249000,-785.36,0.0002755,30]
[424820986,1781182249000,-1046.96,0.0002755,30]
[424820984,1781182249000,-664.64,0.0002755,30]
[424820987,1781182249000,-682.96,0.0002755,2]
[424820988,1781182249000,-663.85,0.0002755,30]
[424820991,1781182249000,-360.76169886,0.00027593,2]
[424820989,1781182249000,-682.12,0.0002758,7]
[424820992,1781182249000,-15886.23871763,0.00027609,2]
[424820993,1781182249000,-682.12,0.00027611,30]
[424820990,1781182249000,-682.96,0.0002758,7]
[424820994,1781182249000,-682.96,0.00027611,30]
[424820995,1781182249000,-502.0,0.00027616,2]
[424820999,1781182249000,-2000.0,0.00027662,30]
[424820997,1781182249000,-682.12,0.00027641,2]
[424820998,1781182249000,-682.96,0.00027641,2]
[424821000,1781182249000,-2000.0,0.00027662,30]
[424821005,1781182249000,-2000.0,0.00027662,30]
[424821004,1781182249000,-2000.0,0.00027662,30]
[424821003,1781182249000,-2000.0,0.00027662,30]
[424820996,1781182249000,-218.0,0.00027633,2]
[424821001,1781182249000,-2000.0,0.00027662,30]
[424821002,1781182249000,-2000.0,0.00027662,30]
[424821007,1781182249000,-682.12,0.00027672,7]
[424821008,1781182249000,-682.96,0.00027672,7]
[424821009,1781182249000,-692.12,0.000277,7]
[424820983,1781182249000,-1045.35,0.0002755,30]
[424820982,1781182249000,-682.12,0.0002755,2]
[424820959,1781182249000,-289.13094518,0.00027549,7]
[424820974,1781182249000,-158.38624401,0.00027549,7]
[424820980,1781182249000,-288.392,0.0002755,17]
[424820956,1781182249000,-182.48989625,0.00027548,7]
[424820960,1781182249000,-179.44031012,0.00027549,7]
[424821006,1781182249000,-2132.0,0.00027662,30]
[424820957,1781182249000,-157.84635979,0.00027549,7]
[424820952,1781182249000,-171.15982184,0.00027548,7]
[424820958,1781182249000,-194.02286035,0.00027549,7]
[424820963,1781182249000,-225.44963739,0.00027549,7]
[424820964,1781182249000,-159.30725686,0.00027549,7]
[424820962,1781182249000,-295.73029983,0.00027549,7]
[424820966,1781182249000,-160.06012749,0.00027549,7]
[424820965,1781182249000,-217.99306079,0.00027549,7]
[424820961,1781182249000,-248.79264251,0.00027549,7]
[424820968,1781182249000,-152.61964976,0.00027549,7]
[424820967,1781182249000,-205.40773364,0.00027549,7]
[424820976,1781182249000,-159.2216773,0.00027549,7]
[424820979,1781182249000,-4904.117,0.0002755,17]
[424820981,1781182249000,-785.83,0.0002755,30]
[424820975,1781182249000,-169.75874664,0.00027549,7]
[424820977,1781182249000,-152.12505857,0.00027549,7]
[424820978,1781182249000,-166.12096273,0.00027549,7]
[424820972,1781182249000,-170.09941481,0.00027549,7]
[424820971,1781182249000,-195.71819516,0.00027549,7]
[424820970,1781182249000,-171.13078668,0.00027549,7]
[424820969,1781182249000,-163.58377588,0.00027549,7]
[424820973,1781182249000,-181.77250968,0.00027549,7]
[424821045,1781182250000,-11819.0,0.00027918,2]
[424821049,1781182250000,-710.0,0.00027949,2]
[424821052,1781182250000,-360.76169886,0.00027984,2]
[424821047,1781182250000,-682.12,0.00027946,7]
[424821038,1781182250000,-785.36,0.00027872,2]
[424821048,1781182250000,-682.96,0.00027946,7]
[424821044,1781182250000,-682.96,0.00027916,2]
[424821043,1781182250000,-682.12,0.00027916,2]
[424821035,1781182250000,-785.83,0.00027872,2]
[424821046,1781182250000,-581.0,0.00027918,2]
[424821042,1781182250000,-1000.0,0.000279,7]
[424821051,1781182250000,-682.96,0.00027977,30]
[424821064,1781182250000,-1046.96,0.00028033,30]
[424821058,1781182250000,-682.12,0.00028007,2]
[424821055,1781182250000,-160.0,0.00028,10]
[424821062,1781182250000,-664.64,0.00028033,30]
[424821060,1781182250000,-785.83,0.00028033,30]
[424821061,1781182250000,-1045.35,0.00028033,30]
[424821054,1781182250000,-160.0,0.00028,30]
[424821059,1781182250000,-682.96,0.00028007,2]
[424821056,1781182250000,-600.0,0.00028,2]
[424821053,1781182250000,-2123.18,0.00028,7]
[424821057,1781182250000,-284.91992931,0.00028,30]
[424821063,1781182250000,-785.36,0.00028033,30]
[424821037,1781182250000,-664.64,0.00027872,2]
[424821050,1781182250000,-682.12,0.00027977,30]
[424821033,1781182250000,-682.12,0.00027855,7]
[424821026,1781182250000,-360.76169886,0.00027789,2]
[424821036,1781182250000,-1045.35,0.00027872,2]
[424821066,1781182250000,-682.12,0.00028068,30]
[424821015,1781182250000,-785.36,0.00027711,7]
[424821016,1781182250000,-1046.96,0.00027711,7]
[424821017,1781182250000,-682.12,0.00027733,2]
[424821011,1781182250000,-682.96,0.00027702,30]
[424821010,1781182250000,-682.12,0.00027702,30]
[424821013,1781182250000,-1045.35,0.00027711,7]
[424821014,1781182250000,-664.64,0.00027711,7]
[424821012,1781182250000,-785.83,0.00027711,7]
[424821018,1781182250000,-682.96,0.00027733,2]
[424821021,1781182250000,-3000.0,0.0002776,2]
[424821020,1781182250000,-3000.0,0.0002776,2]
[424821024,1781182250000,-682.96,0.00027763,7]
[424821025,1781182250000,-152.0,0.00027768,3]
[424821019,1781182250000,-1183.85203056,0.0002775,2]
[424821023,1781182250000,-682.12,0.00027763,7]
[424821022,1781182250000,-2609.54,0.0002776,2]
[424821027,1781182250000,-682.12,0.00027794,30]
[424821028,1781182250000,-682.96,0.00027794,30]
[424821031,1781182250000,-3000.0,0.00027827,2]
[424821032,1781182250000,-587.3,0.00027827,2]
[424821030,1781182250000,-682.96,0.00027824,2]
[424821039,1781182250000,-1046.96,0.00027872,2]
[424821040,1781182250000,-682.12,0.00027885,30]
[424821041,1781182250000,-682.96,0.00027885,30]
[424821034,1781182250000,-682.96,0.00027855,7]
[424821071,1781182250000,-1045.35,0.00028194,7]
[424821029,1781182250000,-682.12,0.00027824,2]
[424821074,1781182250000,-1046.96,0.00028194,7]
[424821110,1781182250000,-450.89927477,0.00028849,7]
[424821100,1781182250000,-346.26518962,0.00028848,2]
[424821099,1781182250000,-353.22454583,0.00028848,7]
[424821108,1781182250000,-497.58528502,0.00028849,7]
[424821109,1781182250000,-591.46059967,0.00028849,7]
[424821101,1781182250000,-335.39680768,0.00028848,5]
[424821102,1781182250000,-364.97979249,0.00028848,7]
[424821103,1781182250000,-315.69271958,0.00028849,7]
[424821106,1781182250000,-358.88062025,0.00028849,7]
[424821124,1781182250000,-339.51749329,0.00028849,7]
[424821105,1781182250000,-578.26189036,0.00028849,7]
[424821104,1781182250000,-388.0457207,0.00028849,7]
[424821095,1781182250000,-198.04688191,0.00028767,3]
[424821107,1781182250000,-168.88060951,0.00028849,7]
[424821113,1781182250000,-320.12025498,0.00028849,7]
[424821116,1781182250000,-327.16755175,0.00028849,7]
[424821114,1781182250000,-410.81546729,0.00028849,7]
[424821072,1781182250000,-664.64,0.00028194,7]
[424821117,1781182250000,-342.26157336,0.00028849,7]
[424821115,1781182250000,-305.23929953,0.00028849,7]
[424821119,1781182250000,-247.62620636,0.00028849,7]
[424821121,1781182250000,-363.54501935,0.00028849,7]
[424821120,1781182250000,-391.43639033,0.00028849,7]
[424821112,1781182250000,-435.98612158,0.00028849,7]
[424821123,1781182250000,-316.77248802,0.00028849,7]
[424821122,1781182250000,-340.19882961,0.00028849,7]
[424821111,1781182250000,-318.61451373,0.00028849,7]
[424821097,1781182250000,-16634.16971911,0.000288,2]
[424821118,1781182250000,-181.17210232,0.00028849,7]
[424821091,1781182250000,-170.40919311,0.00028721,7]
[424821096,1781182250000,-16634.16971913,0.000288,2]
[424821067,1781182250000,-682.12,0.00028099,2]
[424821065,1781182250000,-682.12,0.00028038,7]
[424821070,1781182250000,-785.83,0.00028194,7]
[424821069,1781182250000,-360.76169886,0.0002818,2]
[424821068,1781182250000,-682.29,0.0002813,7]
[424821075,1781182250000,-1760.5,0.00028267,2]
[424821077,1781182250000,-348.0,0.00028349,2]
[424821076,1781182250000,-2006.0,0.000283,2]
[424821079,1781182250000,-360.76169886,0.00028376,2]
[424821080,1781182250000,-168.44,0.00028493,2]
[424821078,1781182250000,-4044.71,0.00028354,7]
[424821081,1781182250000,-360.76169886,0.00028571,2]
[424821073,1781182250000,-785.36,0.00028194,7]
[424821082,1781182250000,-208.73,0.00028596,7]
[424821088,1781182250000,-339.65084276,0.00028721,7]
[424821083,1781182250000,-500.95,0.00028596,30]
[424821094,1781182250000,-360.76169886,0.00028767,2]
[424821098,1781182250000,-342.31964368,0.00028848,7]
[424821090,1781182250000,-388.5091341,0.00028721,7]
[424821093,1781182250000,-150.0,0.00028765,7]
[424821087,1781182250000,-220.46829078,0.00028721,7]
[424821089,1781182250000,-195.16261851,0.00028721,7]
[424821085,1781182250000,-1058.0,0.00028608,10]
[424821086,1781182250000,-229.98384101,0.00028721,7]
[424821084,1781182250000,-156.54,0.00028596,5]
[424821092,1781182250000,-334.35288985,0.00028721,7]
[424821146,1781182251000,-2000.0,0.00029,2]
[424821149,1781182251000,-500.0,0.00029,2]
[424821156,1781182251000,-100000.0,0.00029009,7]
[424821157,1781182251000,-1689.64848055,0.00029024,2]
[424821150,1781182251000,-456.85,0.00029,2]
[424821155,1781182251000,-692.12,0.00029,7]
[424821148,1781182251000,-456.86,0.00029,2]
[424821154,1781182251000,-2210.0,0.00029,7]
[424821161,1781182251000,-1107.0,0.00029189,30]
[424821152,1781182251000,-22779.44976311,0.00029,2]
[424821153,1781182251000,-500.0,0.00029,2]
[424821158,1781182251000,-1543.71,0.000291,4]
[424821159,1781182251000,-360.76169886,0.00029159,2]
[424821160,1781182251000,-337.0,0.00029189,30]
[424821165,1781182251000,-269.0,0.0002919,30]
[424821162,1781182251000,-404.0,0.00029189,30]
[424821147,1781182251000,-10000.0,0.00029,2]
[424821151,1781182251000,-500.0,0.00029,2]
[424821143,1781182251000,-455.5,0.00029,2]
[424821129,1781182251000,-200.0,0.000289,2]
[424821145,1781182251000,-456.86,0.00029,2]
[424821133,1781182251000,-360.76169886,0.00028963,2]
[424821126,1781182251000,-304.25011715,0.00028849,7]
[424821125,1781182251000,-318.4433546,0.00028849,7]
[424821128,1781182251000,-214.18211509,0.00028849,7]
[424821127,1781182251000,-332.24192547,0.00028849,7]
[424821131,1781182251000,-200.0,0.000289,2]
[424821130,1781182251000,-512.0,0.000289,2]
[424821132,1781182251000,-341.0,0.000289,2]
[424821134,1781182251000,-500.0,0.00029,2]
[424821141,1781182251000,-433.81,0.00029,2]
[424821135,1781182251000,-500.0,0.00029,2]
[424821137,1781182251000,-500.0,0.00029,2]
[424821140,1781182251000,-404.73,0.00029,2]
[424821136,1781182251000,-500.0,0.00029,2]
[424821142,1781182251000,-460.93,0.00029,2]
[424821144,1781182251000,-3024.49,0.00029,2]
[424821138,1781182251000,-500.0,0.00029,2]
[424821139,1781182251000,-500.0,0.00029,2]
[424821164,1781182251000,-1162.0,0.0002919,30]
[424821167,1781182251000,-277.0,0.0002919,30]
[424821166,1781182251000,-478.0,0.0002919,30]
[424821189,1781182251000,-360.76169886,0.0002955,2]
[424821187,1781182251000,-447.07,0.00029463,2]
[424821192,1781182251000,-509.47626414,0.00029584,7]
[424821194,1781182251000,-582.76370115,0.00029584,7]
[424821196,1781182251000,-340.81838621,0.00029584,7]
[424821197,1781182251000,-224.45666187,0.00029584,7]
[424821200,1781182251000,-711.45311862,0.00029589,2]
[424821204,1781182251000,-2000.0,0.00029613,2]
[424821199,1781182251000,-501.52933478,0.00029584,7]
[424821193,1781182251000,-268.20558447,0.00029584,7]
[424821195,1781182251000,-390.32523702,0.00029584,7]
[424821202,1781182251000,-1347.94,0.00029613,2]
[424821201,1781182251000,-2000.0,0.00029613,2]
[424821203,1781182251000,-2152.38,0.00029613,2]
[424821206,1781182251000,-668.65185756,0.00029631,2]
[424821205,1781182251000,-1586.61,0.00029613,2]
[424821163,1781182251000,-425.0,0.00029189,30]
[424821188,1781182251000,-88190.7663667,0.00029541,2]
[424821184,1781182251000,-150.0,0.00029416,7]
[424821198,1781182251000,-238.2991077,0.00029584,7]
[424821179,1781182251000,-273.0,0.0002936,2]
[424821178,1781182251000,-637.45375206,0.00029358,2]
[424821183,1781182251000,-150.0,0.00029416,7]
[424821171,1781182251000,-1231.0,0.00029191,30]
[424821170,1781182251000,-342.0,0.00029191,30]
[424821173,1781182251000,-206.90795451,0.00029254,30]
[424821172,1781182251000,-1860.0,0.00029191,30]
[424821169,1781182251000,-428.0,0.0002919,30]
[424821168,1781182251000,-396.0,0.0002919,30]
[424821174,1781182251000,-376.0,0.00029256,30]
[424821177,1781182251000,-360.76169886,0.00029354,2]
[424821176,1781182251000,-2000.0,0.000293,2]
[424821180,1781182251000,-150.0,0.00029416,7]
[424821190,1781182251000,-459.96768202,0.00029584,7]
[424821191,1781182251000,-440.93658157,0.00029584,7]
[424821186,1781182251000,-150.0,0.00029416,7]
[424821182,1781182251000,-150.0,0.00029416,7]
[424821185,1781182251000,-150.0,0.00029416,7]
[424821175,1781182251000,-150.0,0.00029265,7]
[424821181,1781182251000,-150.00000001,0.00029416,7]
[424821247,1781182252000,-238.7975193,0.00029716,7]
[424821246,1781182252000,-509.27623993,0.00029716,7]
[424821245,1781182252000,-475.15873203,0.00029716,7]
[424821238,1781182252000,-209.40975565,0.00029716,7]
[424821240,1781182252000,-495.25241272,0.00029716,7]
[424821241,1781182252000,-587.15458549,0.00029716,7]
[424821242,1781182252000,-545.31752903,0.00029716,7]
[424821236,1781182252000,-243.84435852,0.00029716,7]
[424821244,1781182252000,-191.86335685,0.00029716,7]
[424821233,1781182252000,-457.85894929,0.00029716,7]
[424821239,1781182252000,-362.34420464,0.00029716,7]
[424821248,1781182252000,-456.37517572,0.00029716,7]
[424821258,1781182252000,-733.09440557,0.000299,2]
[424821250,1781182252000,-477.6650319,0.00029716,7]
[424821260,1781182252000,-733.09440557,0.000299,2]
[424821252,1781182252000,-360.76169886,0.00029746,2]
[424821249,1781182252000,-498.3628882,0.00029716,7]
[424821251,1781182252000,-428.36423019,0.00029716,7]
[424821253,1781182252000,-150.0,0.00029765,7]
[424821254,1781182252000,-208.73,0.00029828,7]
[424821259,1781182252000,-733.09440557,0.000299,2]
[424821257,1781182252000,-54000.0,0.000299,2]
[424821255,1781182252000,-500.95,0.00029828,30]
[424821229,1781182252000,-653.97918237,0.00029716,7]
[424821243,1781182252000,-510.29824442,0.00029716,7]
[424821235,1781182252000,-490.75132763,0.00029716,7]
[424821210,1781182252000,-513.47946552,0.00029715,7]
[424821232,1781182252000,-238.60497449,0.00029716,7]
[424821256,1781182252000,-156.54,0.00029828,5]
[424821215,1781182252000,-197.3616074,0.00029715,7]
[424821214,1781182252000,-503.09521152,0.00029715,5]
[424821207,1781182252000,-833.92535152,0.00029631,2]
[424821208,1781182252000,-151.0,0.00029631,2]
[424821211,1781182252000,-529.83681875,0.00029715,7]
[424821209,1781182252000,-336.88575774,0.00029701,2]
[424821212,1781182252000,-519.39778444,0.00029715,2]
[424821213,1781182252000,-194.28621163,0.00029715,7]
[424821216,1781182252000,-547.46968874,0.00029715,7]
[424821218,1781182252000,-239.67197613,0.00029715,7]
[424821231,1781182252000,-616.22320093,0.00029716,7]
[424821219,1781182252000,-473.53907937,0.00029716,7]
[424821217,1781182252000,-177.1852965,0.00029715,7]
[424821223,1781182252000,-337.76121901,0.00029716,7]
[424821221,1781182252000,-867.39283553,0.00029716,7]
[424821220,1781182252000,-582.06858106,0.00029716,7]
[424821224,1781182252000,-746.37792752,0.00029716,7]
[424821225,1781182252000,-887.1908995,0.00029716,7]
[424821226,1781182252000,-676.34891216,0.00029716,7]
[424821228,1781182252000,-477.92177059,0.00029716,7]
[424821227,1781182252000,-259.02532972,0.00029716,7]
[424821230,1781182252000,-480.18038247,0.00029716,7]
[424821234,1781182252000,-295.91212578,0.00029716,7]
[424821222,1781182252000,-538.32093037,0.00029716,7]
[424821261,1781182252000,-733.09440557,0.000299,2]
[424821237,1781182252000,-513.39236004,0.00029716,7]
[424821265,1781182252000,-733.09440557,0.000299,2]
[424821288,1781182252000,-500.0,0.00029999,2]
[424821292,1781182252000,-500.0,0.00029999,2]
[424821293,1781182252000,-500.0,0.00029999,2]
[424821295,1781182252000,-500.0,0.00029999,2]
[424821299,1781182252000,-500.0,0.00029999,2]
[424821300,1781182252000,-500.0,0.00029999,2]
[424821298,1781182252000,-372.63048894,0.00029999,2]
[424821301,1781182252000,-500.0,0.00029999,2]
[424821297,1781182252000,-500.0,0.00029999,2]
[424821306,1781182252000,-189.889999,0.0003,11]
[424821296,1781182252000,-500.0,0.00029999,2]
[424821304,1781182252000,-271.52,0.0003,2]
[424821302,1781182252000,-500.0,0.00029999,2]
[424821303,1781182252000,-150.0,0.00029999,2]
[424821308,1781182252000,-173.41988581,0.0003,16]
[424821307,1781182252000,-369.3169676,0.0003,30]
[424821309,1781182252000,-650.0,0.0003,2]
[424821310,1781182252000,-4044.71,0.00030025,7]
[424821311,1781182252000,-150.0,0.0003007,7]
[424821312,1781182252000,-270.02,0.00030082,120]
[424821313,1781182252000,-408.0,0.00030086,2]
[424821315,1781182252000,-2279.0,0.00030095,2]
[424821316,1781182252000,-8281.73323951,0.00030097,2]
[424821317,1781182252000,-625.07,0.00030137,2]
[424821263,1781182252000,-733.09440557,0.000299,2]
[424821290,1781182252000,-500.0,0.00029999,2]
[424821286,1781182252000,-500.0,0.00029999,2]
[424821305,1781182252000,-6929.82,0.0003,2]
[424821287,1781182252000,-500.0,0.00029999,2]
[424821291,1781182252000,-500.0,0.00029999,2]
[424821264,1781182252000,-733.09440557,0.000299,2]
[424821267,1781182252000,-733.09440557,0.000299,2]
[424821266,1781182252000,-733.09440557,0.000299,2]
[424821262,1781182252000,-733.09440557,0.000299,2]
[424821268,1781182252000,-733.09440557,0.000299,2]
[424821269,1781182252000,-733.09440557,0.000299,2]
[424821273,1781182252000,-733.09440557,0.000299,2]
[424821271,1781182252000,-733.09440557,0.000299,2]
[424821272,1781182252000,-733.09440557,0.000299,2]
[424821274,1781182252000,-733.09440557,0.000299,2]
[424821275,1781182252000,-733.09440557,0.000299,2]
[424821279,1781182252000,-527.81115247,0.00029947,5]
[424821270,1781182252000,-733.09440557,0.000299,2]
[424821283,1781182252000,-500.0,0.00029999,2]
[424821280,1781182252000,-277.20095226,0.00029999,2]
[424821277,1781182252000,-733.09440557,0.000299,2]
[424821276,1781182252000,-733.09440557,0.000299,2]
[424821281,1781182252000,-500.0,0.00029999,2]
[424821278,1781182252000,-360.76169886,0.00029941,2]
[424821294,1781182252000,-404.65778155,0.00029999,2]
[424821284,1781182252000,-500.0,0.00029999,2]
[424821282,1781182252000,-463.8895657,0.00029999,2]
[424821285,1781182252000,-476.37531509,0.00029999,2]
[424821314,1781182252000,-2256.0,0.00030095,2]
[424821289,1781182252000,-500.0,0.00029999,2]
[424821364,1781182253000,-240.87416947,0.00030256,7]
[424821344,1781182253000,-277.0,0.0003019,30]
[424821356,1781182253000,-575.42,0.00030196,2]
[424821363,1781182253000,-1760.5,0.00030239,2]
[424821354,1781182253000,-573.23,0.00030196,2]
[424821348,1781182253000,-1231.0,0.00030191,30]
[424821351,1781182253000,-245.55,0.00030196,2]
[424821350,1781182253000,-551.69,0.00030196,2]
[424821347,1781182253000,-342.0,0.00030191,30]
[424821349,1781182253000,-1860.0,0.00030191,30]
[424821357,1781182253000,-573.23,0.00030197,2]
[424821353,1781182253000,-573.23,0.00030196,2]
[424821355,1781182253000,-185.93,0.00030196,2]
[424821365,1781182253000,-152.0,0.00030256,7]
[424821361,1781182253000,-1253.28,0.000302,2]
[424821362,1781182253000,-9384.14,0.000302,2]
[424821358,1781182253000,-573.15,0.00030197,2]
[424821360,1781182253000,-575.42,0.00030197,2]
[424821368,1781182253000,-151.0,0.00030256,7]
[424821367,1781182253000,-152.0,0.00030256,7]
[424821369,1781182253000,-151.0,0.00030256,7]
[424821373,1781182253000,-290.70094381,0.00030284,2]
[424821371,1781182253000,-376.0,0.00030256,30]
[424821372,1781182253000,-150.0,0.00030265,7]
[424821366,1781182253000,-152.0,0.00030256,7]
[424821359,1781182253000,-573.23,0.00030197,2]
[424821346,1781182253000,-428.0,0.0003019,30]
[424821318,1781182253000,-362.81,0.00030137,5]
[424821345,1781182253000,-396.0,0.0003019,30]
[424821370,1781182253000,-151.0,0.00030256,7]
[424821320,1781182253000,-360.76169886,0.00030137,2]
[424821327,1781182253000,-585.48785553,0.0003016,7]
[424821326,1781182253000,-777.0182682,0.0003016,7]
[424821324,1781182253000,-661.40487235,0.0003016,7]
[424821321,1781182253000,-288.87390616,0.00030137,30]
[424821323,1781182253000,-689.95152304,0.0003016,7]
[424821328,1781182253000,-228.23672635,0.0003016,7]
[424821322,1781182253000,-152.0,0.00030137,120]
[424821319,1781182253000,-320.0,0.00030137,15]
[424821325,1781182253000,-679.30168553,0.0003016,7]
[424821330,1781182253000,-186.65434097,0.0003016,7]
[424821352,1781182253000,-573.23,0.00030196,2]
[424821340,1781182253000,-425.0,0.00030189,30]
[424821333,1781182253000,-448.91332375,0.0003016,7]
[424821332,1781182253000,-476.5982154,0.0003016,7]
[424821331,1781182253000,-511.22757932,0.0003016,7]
[424821334,1781182253000,-668.70577971,0.0003016,7]
[424821336,1781182253000,-342.96,0.00030189,7]
[424821335,1781182253000,-336.2174538,0.0003016,2]
[424821339,1781182253000,-404.0,0.00030189,30]
[424821338,1781182253000,-1107.0,0.00030189,30]
[424821337,1781182253000,-337.0,0.00030189,30]
[424821341,1781182253000,-1162.0,0.0003019,30]
[424821343,1781182253000,-478.0,0.0003019,30]
[424821342,1781182253000,-269.0,0.0003019,30]
[424821329,1781182253000,-202.05758571,0.0003016,7]
[424821374,1781182253000,-187.46721377,0.00030285,2]
[424821382,1781182253000,-1000.0,0.00030285,2]